fUSD/lending_fUSD_20240318
["ID","MTS","AMOUNT","RATE_DAILY","PERIOD"]
[319496690,1710801512590,-500.0,0.00023561,2]
[319496691,1710801512614,-794.16,0.00023561,2]
[319496692,1710801512641,-1882.96,0.00023561,2]
[319496693,1710801512666,-3607.26,0.00023561,2]
[319496694,1710801512692,-2869.72,0.00023561,2]
[319496695,1710801512717,-769.85,0.00023561,2]
[319496696,1710801512742,-500.0,0.00023561,2]
[319496697,1710801512766,-983.25,0.00023561,2]
[319496698,1710801512791,-500.0,0.00023561,2]
[319496699,1710801512816,-500.0,0.00023561,2]
[319496700,1710801512841,-1188.81,0.00023561,2]
[319496701,1710801512865,-396.62465249,0.00023561,2]
[319496702,1710801512893,-1417.26,0.00023561,2]
[319496703,1710801512918,-500.0,0.00023561,2]
[319496704,1710801512942,-2122.22,0.00023561,2]
[319496705,1710801512967,-500.0,0.00023561,2]
[319496706,1710801512992,-1018.71,0.00023561,2]
[319496707,1710801513017,-500.0,0.00023561,2]
[319496708,1710801513041,-781.25,0.00023561,2]
[319496709,1710801513065,-500.0,0.00023561,2]
[319496710,1710801513091,-569.49,0.00023561,2]
[319496711,1710801513115,-1183.77,0.00023561,2]
[319496712,1710801513142,-500.0,0.00023561,2]
[319496713,1710801513164,-807.78,0.00023561,2]
[319496714,1710801513190,-503.66501636,0.00023561,2]
[319496715,1710801513214,-540.12,0.00023561,2]
[319496716,1710801513237,-500.0,0.00023561,2]
[319496717,1710801513261,-500.0,0.00023561,2]
[319496718,1710801513285,-500.0,0.00023561,2]
[319496719,1710801513521,-500.0,0.00023561,2]
[319496720,1710801513547,-500.0,0.00023561,2]
[319496721,1710801513574,-500.0,0.00023561,2]
[319496722,1710801513599,-500.0,0.00023561,2]
[319496723,1710801513623,-1780.72,0.00023561,2]
[319496724,1710801513650,-1006.2,0.00023561,2]
[319496725,1710801513673,-500.0,0.00023561,2]
[319496726,1710801513696,-500.0,0.00023561,2]
[319496727,1710801513722,-558.03,0.00023561,2]
[319496728,1710801513747,-1390.6,0.00023561,2]
[319496729,1710801513771,-500.0,0.00023561,2]
[319496730,1710801513794,-1452.64,0.00023561,2]
[319496731,1710801513817,-500.0,0.00023561,2]
[319496732,1710801513842,-500.0,0.00023561,2]
[319496733,1710801513865,-500.0,0.00023561,2]
[319496734,1710801513891,-2348.83,0.00023561,2]
[319496735,1710801513916,-500.0,0.00023561,2]
[319496736,1710801513941,-500.0,0.00023561,2]
[319496737,1710801513965,-555.58,0.00023561,2]
[319496738,1710801513992,-883.91,0.00023561,2]
[319496739,1710801514015,-500.0,0.00023561,2]
[319496740,1710801514045,-500.0,0.00023561,2]
[319496741,1710801514072,-945.54,0.00023561,2]
[319496742,1710801514098,-826.45,0.00023561,2]
[319496743,1710801514125,-500.0,0.00023561,2]
[319496744,1710801514150,-500.0,0.00023561,2]
[319496745,1710801514175,-500.0,0.00023834,2]
[319496746,1710801514199,-500.0,0.00023834,2]
[319496747,1710801514224,-565.93,0.00023834,2]
[319496748,1710801514248,-574.97,0.00023834,2]
[319496749,1710801514278,-500.0,0.00023834,2]
[319496750,1710801514303,-2945.07,0.00023834,2]
[319496751,1710801514327,-500.0,0.00023834,2]
[319496752,1710801514352,-236.15,0.00023834,2]
[319496753,1710801514376,-500.0,0.00023834,2]
[319496754,1710801514401,-839.75,0.00023834,2]
[319496755,1710801514425,-788.14,0.00023834,2]
[319496756,1710801514449,-815.54,0.00023834,2]
[319496757,1710801514478,-3447.08,0.00023834,2]
[319496758,1710801514501,-1456.55,0.00023834,2]
[319496759,1710801514526,-7984.72,0.00023834,2]
[319496760,1710801514549,-523.4,0.00023835,2]
[319496761,1710801514579,-572.66,0.00023835,2]
[319496762,1710801514602,-1533.64,0.00023835,2]
[319496763,1710801514625,-500.0,0.00023835,2]
[319496764,1710801514651,-989.36,0.00023835,2]
[319496765,1710801514673,-1069.34,0.00023835,2]
[319496766,1710801514697,-500.0,0.00023835,2]
[319496767,1710801514722,-686.39,0.00023835,2]
[319496768,1710801514751,-1396.55,0.00023835,2]
[319496769,1710801514776,-500.0,0.00023835,2]
[319496770,1710801514799,-610.81,0.00023835,2]
[319496771,1710801514823,-500.0,0.00023835,2]
[319496772,1710801514847,-807.02,0.00023835,2]
[319496773,1710801514870,-1025.84,0.00023835,2]
[319496774,1710801514897,-717.19,0.00023835,2]
[319496775,1710801514921,-1632.41,0.00023835,2]
[319496776,1710801514945,-763.85,0.00023835,2]
[319496777,1710801514969,-1011.43,0.00023835,2]
[319496778,1710801514992,-1273.81,0.00023835,2]
[319496779,1710801515016,-511.51,0.00023835,2]
[319496780,1710801515041,-461.26,0.00023835,2]
[319496781,1710801515066,-500.0,0.00023835,2]
[319496782,1710801515094,-776.97,0.00023835,2]
[319496783,1710801515120,-500.0,0.00023835,2]
[319496784,1710801515145,-500.0,0.00023835,2]
[319496785,1710801515172,-1785.78,0.00023835,2]
[319496786,1710801515197,-500.0,0.00023835,2]
[319496787,1710801515221,-630.8,0.00023835,2]
[319496788,1710801515246,-750.05,0.00023835,2]
[319496789,1710801515269,-700.3,0.00023835,2]
[319496790,1710801515295,-500.0,0.00023835,2]
[319496791,1710801515319,-500.0,0.00023835,2]
[319496792,1710801515344,-500.0,0.00023835,2]
[319496793,1710801515373,-500.0,0.00023835,2]
[319496794,1710801515400,-500.0,0.00023835,2]
[319496795,1710801515424,-771.5,0.00023835,2]
[319496796,1710801515450,-500.0,0.00023835,2]
[319496797,1710801515478,-816.17,0.00023835,2]
[319496798,1710801515505,-500.0,0.00023835,2]
[319496799,1710801515532,-761.47,0.00023835,2]
[319496800,1710801515559,-500.0,0.00023835,2]
[319496801,1710801515585,-500.0,0.00023835,2]
[319496802,1710801515611,-556.75,0.00023835,2]
[319496803,1710801515646,-1208.26,0.00023835,2]
[319496804,1710801515672,-500.0,0.00023835,2]
[319496805,1710801515699,-3033.01,0.00023835,2]
[319496806,1710801515724,-500.0,0.00023835,2]
[319496807,1710801515749,-500.0,0.00023835,2]
[319496808,1710801515776,-1975.39,0.00023835,2]
[319496809,1710801515804,-741.46,0.00023835,2]
[319496810,1710801515831,-1339.38,0.00023835,2]
[319496811,1710801515860,-2523.93,0.00023835,2]
[319496812,1710801515893,-641.13,0.00023835,2]
[319496813,1710801515920,-1219.93,0.00023835,2]
[319496814,1710801515946,-1679.61,0.00023835,2]
[319496815,1710801515974,-826.95,0.00023835,2]
[319496816,1710801516002,-500.0,0.00023835,2]
[319496817,1710801516033,-3302.65,0.00023835,2]
[319496818,1710801516062,-276.43,0.00023835,2]
[319496819,1710801516092,-500.0,0.00023835,2]
[319496820,1710801516119,-500.0,0.00023835,2]
[319496821,1710801516148,-794.16,0.00023835,2]
[319496822,1710801516176,-1882.96,0.00023835,2]
[319496823,1710801516361,-3607.26,0.00023835,2]
[319496824,1710801516392,-2869.72,0.00023835,2]
[319496825,1710801516417,-769.85,0.00023835,2]
[319496826,1710801516442,-500.0,0.00023835,2]
[319496827,1710801516468,-500.0,0.00023835,2]
[319496828,1710801516494,-983.25,0.00023835,2]
[319496829,1710801516521,-500.0,0.00023835,2]
[319496830,1710801516548,-1188.81,0.00023835,2]
[319496831,1710801516574,-1417.26,0.00023835,2]
[319496832,1710801516600,-500.0,0.00023835,2]
[319496833,1710801516625,-2122.22,0.00023835,2]
[319496834,1710801516653,-500.0,0.00023835,2]
[319496835,1710801516678,-1018.71,0.00023835,2]
[319496836,1710801516703,-500.0,0.00023835,2]
[319496837,1710801516729,-781.25,0.00023835,2]
[319496838,1710801516756,-500.0,0.00023835,2]
[319496839,1710801516783,-569.49,0.00023835,2]
[319496840,1710801516808,-1183.77,0.00023835,2]
[319496841,1710801516834,-500.0,0.00023835,2]
[319496842,1710801516860,-807.78,0.00023835,2]
[319496843,1710801516892,-500.0,0.00023835,2]
[319496844,1710801516920,-500.0,0.00023835,2]
[319496845,1710801516948,-500.0,0.00023835,2]
[319496846,1710801516976,-500.0,0.00023835,2]
[319496847,1710801517000,-500.0,0.00023835,2]
[319496848,1710801517026,-500.0,0.00023835,2]
[319496849,1710801517051,-500.0,0.00023835,2]
[319496850,1710801517078,-1780.72,0.00023835,2]
[319496851,1710801517102,-1006.2,0.00023835,2]
[319496852,1710801517126,-500.0,0.00023835,2]
[319496853,1710801517154,-500.0,0.00023835,2]
[319496854,1710801517179,-558.03,0.00023835,2]
[319496855,1710801517204,-1390.6,0.00023835,2]
[319496856,1710801517230,-500.0,0.00023835,2]
[319496857,1710801517254,-1452.64,0.00023835,2]
[319496858,1710801517277,-500.0,0.00023835,2]
[319496859,1710801517300,-500.0,0.00023835,2]
[319496860,1710801517323,-500.0,0.00023835,2]
[319496861,1710801517346,-2348.83,0.00023835,2]
[319496862,1710801517369,-500.0,0.00023835,2]
[319496863,1710801517397,-883.91,0.00023835,2]
[319496864,1710801517422,-500.0,0.00023835,2]
[319496865,1710801517446,-500.0,0.00023835,2]
[319496866,1710801517470,-945.54,0.00023835,2]
[319496867,1710801517494,-826.45,0.00023835,2]
[319496868,1710801517519,-1000.0,0.00023872,2]
[319496869,1710801517542,-151.05666748,0.00023904,2]
[319496870,1710801517565,-463.11022735,0.00023994,2]
[319496871,1710801517588,-429.43434009,0.00024,2]
[319496872,1710801517612,-500.0,0.00024108,2]
[319496873,1710801517635,-500.0,0.00024108,2]
[319496874,1710801517663,-565.93,0.00024108,2]
[319496875,1710801517688,-574.97,0.00024108,2]
[319496876,1710801517712,-500.0,0.00024108,2]
[319496877,1710801517738,-2945.07,0.00024108,2]
[319496878,1710801517762,-500.0,0.00024108,2]
[319496879,1710801517785,-500.0,0.00024108,2]
[319496880,1710801517810,-839.75,0.00024108,2]
[319496881,1710801517835,-788.14,0.00024108,2]
[319496882,1710801517859,-815.54,0.00024108,2]
[319496883,1710801517883,-3447.08,0.00024108,2]
[319496884,1710801517910,-1456.55,0.00024108,2]
[319496885,1710801517934,-7984.72,0.00024108,2]
[319496886,1710801517958,-523.4,0.00024109,2]
[319496887,1710801517982,-572.66,0.00024109,2]
[319496888,1710801518006,-1533.64,0.00024109,2]
[319496889,1710801518029,-500.0,0.00024109,2]
[319496890,1710801518054,-989.36,0.00024109,2]
[319496891,1710801518080,-1069.34,0.00024109,2]
[319496892,1710801518108,-500.0,0.00024109,2]
[319496893,1710801518131,-686.39,0.00024109,2]
[319496894,1710801518159,-1396.55,0.00024109,2]
[319496895,1710801518183,-500.0,0.00024109,2]
[319496896,1710801518206,-610.81,0.00024109,2]
[319496897,1710801518229,-500.0,0.00024109,2]
[319496898,1710801518252,-807.02,0.00024109,2]
[319496899,1710801518277,-1025.84,0.00024109,2]
[319496900,1710801518301,-717.19,0.00024109,2]
[319496901,1710801518325,-1632.41,0.00024109,2]
[319496902,1710801518349,-763.85,0.00024109,2]
[319496903,1710801518372,-1273.81,0.00024109,2]
[319496904,1710801518399,-1011.43,0.00024109,2]
[319496905,1710801518422,-511.51,0.00024109,2]
[319496906,1710801518445,-500.0,0.00024109,2]
[319496907,1710801518469,-776.97,0.00024109,2]
[319496908,1710801518492,-500.0,0.00024109,2]
[319496909,1710801518516,-500.0,0.00024109,2]
[319496910,1710801518541,-1785.78,0.00024109,2]
[319496911,1710801518567,-500.0,0.00024109,2]
[319496912,1710801518593,-630.8,0.00024109,2]
[319496913,1710801518619,-750.05,0.00024109,2]
[319496914,1710801518645,-700.3,0.00024109,2]
[319496915,1710801518670,-500.0,0.00024109,2]
[319496916,1710801518696,-500.0,0.00024109,2]
[319496917,1710801518721,-500.0,0.00024109,2]
[319496918,1710801518745,-500.0,0.00024109,2]
[319496919,1710801518769,-500.0,0.00024109,2]
[319496920,1710801518793,-771.5,0.00024109,2]
[319496921,1710801518818,-500.0,0.00024109,2]
[319496922,1710801518846,-816.17,0.00024109,2]
[319496923,1710801518871,-500.0,0.00024109,2]
[319496924,1710801518896,-761.47,0.00024109,2]
[319496925,1710801518921,-500.0,0.00024109,2]
[319496926,1710801518945,-500.0,0.00024109,2]
[319496927,1710801519117,-556.75,0.00024109,2]
[319496928,1710801519149,-1208.26,0.00024109,2]
[319496929,1710801519176,-500.0,0.00024109,2]
[319496930,1710801519200,-3033.01,0.00024109,2]
[319496931,1710801519224,-500.0,0.00024109,2]
[319496932,1710801519248,-500.0,0.00024109,2]
[319496933,1710801519273,-1975.39,0.00024109,2]
[319496934,1710801519297,-741.46,0.00024109,2]
[319496935,1710801519320,-1339.38,0.00024109,2]
[319496936,1710801519344,-2523.93,0.00024109,2]
[319496937,1710801519368,-641.13,0.00024109,2]
[319496938,1710801519395,-1219.93,0.00024109,2]
[319496939,1710801519421,-1679.61,0.00024109,2]
[319496940,1710801519444,-826.95,0.00024109,2]
[319496941,1710801519469,-500.0,0.00024109,2]
[319496942,1710801519494,-3302.65,0.00024109,2]
[319496943,1710801519518,-500.0,0.00024109,2]
[319496944,1710801519543,-500.0,0.00024109,2]
[319496945,1710801519573,-794.16,0.00024109,2]
[319496946,1710801519598,-1882.96,0.00024109,2]
[319496947,1710801519627,-3607.26,0.00024109,2]
[319496948,1710801519655,-2869.72,0.00024109,2]
[319496949,1710801519678,-769.85,0.00024109,2]
[319496950,1710801519702,-500.0,0.00024109,2]
[319496951,1710801519725,-500.0,0.00024109,2]
[319496952,1710801519749,-983.25,0.00024109,2]
[319496953,1710801519774,-500.0,0.00024109,2]
[319496954,1710801519799,-1188.81,0.00024109,2]
[319496955,1710801519824,-1417.26,0.00024109,2]
[319496956,1710801519848,-500.0,0.00024109,2]
[319496957,1710801519872,-2122.22,0.00024109,2]
[319496958,1710801519896,-500.0,0.00024109,2]
[319496959,1710801519920,-1018.71,0.00024109,2]
[319496960,1710801519946,-500.0,0.00024109,2]
[319496961,1710801519971,-781.25,0.00024109,2]
[319496962,1710801519994,-505.29743614,0.00024109,2]
[319496963,1710801520019,-569.49,0.00024109,2]
[319496964,1710801520050,-1183.77,0.00024109,2]
[319496965,1710801520075,-500.0,0.00024109,2]
[319496966,1710801520102,-807.78,0.00024109,2]
[319496967,1710801520127,-500.0,0.00024109,2]
[319496968,1710801520153,-500.0,0.00024109,2]
[319496969,1710801520182,-500.0,0.00024109,2]
[319496970,1710801520205,-500.0,0.00024109,2]
[319496971,1710801520228,-500.0,0.00024109,2]
[319496972,1710801520252,-500.0,0.00024109,2]
[319496973,1710801520276,-564.26,0.00024109,2]
[319496974,1710801520299,-1780.72,0.00024109,2]
[319496975,1710801520323,-1006.2,0.00024109,2]
[319496976,1710801520347,-500.0,0.00024109,2]
[319496977,1710801520371,-500.0,0.00024109,2]
[319496978,1710801520398,-558.03,0.00024109,2]
[319496979,1710801520422,-1390.6,0.00024109,2]
[319496980,1710801520467,-638.62,0.00024109,2]
[319496981,1710801520492,-1452.64,0.00024109,2]
[319496982,1710801520517,-500.0,0.00024109,2]
[319496983,1710801520542,-500.0,0.00024109,2]
[319496984,1710801520566,-500.0,0.00024109,2]
[319496985,1710801520591,-2348.83,0.00024109,2]
[319496986,1710801520616,-500.0,0.00024109,2]
[319496987,1710801520639,-883.91,0.00024109,2]
[319496988,1710801520663,-500.0,0.00024109,2]
[319496989,1710801520688,-500.0,0.00024109,2]
[319496990,1710801520713,-945.54,0.00024109,2]
[319496991,1710801520737,-826.45,0.00024109,2]
[319496992,1710801520762,-226.0,0.00024246,2]
[319496993,1710801520787,-500.0,0.00024382,2]
[319496994,1710801520812,-500.0,0.00024382,2]
[319496995,1710801520837,-565.93,0.00024382,2]
[319496996,1710801520866,-574.97,0.00024382,2]
[319496997,1710801520895,-500.0,0.00024382,2]
[319496998,1710801520922,-2945.07,0.00024382,2]
[319496999,1710801520948,-500.0,0.00024382,2]
[319497000,1710801520972,-500.0,0.00024382,2]
[319497001,1710801520998,-839.75,0.00024382,2]
[319497002,1710801521024,-788.14,0.00024382,2]
[319497003,1710801521049,-815.54,0.00024382,2]
[319497004,1710801521077,-3447.08,0.00024382,2]
[319497005,1710801521103,-1456.55,0.00024382,2]
[319497006,1710801521128,-7984.72,0.00024382,2]
[319497007,1710801521157,-523.4,0.00024383,2]
[319497008,1710801521180,-572.66,0.00024383,2]
[319497009,1710801521203,-1533.64,0.00024383,2]
[319497010,1710801521227,-500.0,0.00024383,2]
[319497011,1710801521251,-989.36,0.00024383,2]
[319497012,1710801521276,-1069.34,0.00024383,2]
[319497013,1710801521302,-500.0,0.00024383,2]
[319497014,1710801521326,-686.39,0.00024383,2]
[319497015,1710801521351,-1396.55,0.00024383,2]
[319497016,1710801521375,-500.0,0.00024383,2]
[319497017,1710801521398,-610.81,0.00024383,2]
[319497018,1710801521420,-500.0,0.00024383,2]
[319497019,1710801521444,-807.02,0.00024383,2]
[319497020,1710801521468,-1025.84,0.00024383,2]
[319497021,1710801521493,-717.19,0.00024383,2]
[319497022,1710801521516,-1632.41,0.00024383,2]
[319497023,1710801521541,-763.85,0.00024383,2]
[319497024,1710801521564,-1011.43,0.00024383,2]
[319497025,1710801521588,-511.51,0.00024383,2]
[319497026,1710801521612,-1273.81,0.00024383,2]
[319497027,1710801521637,-500.0,0.00024383,2]
[319497028,1710801521664,-776.97,0.00024383,2]
[319497029,1710801521688,-500.0,0.00024383,2]
[319497030,1710801521711,-500.0,0.00024383,2]
[319497031,1710801521882,-1785.78,0.00024383,2]
[319497032,1710801521911,-500.0,0.00024383,2]
[319497033,1710801521938,-630.8,0.00024383,2]
[319497034,1710801521964,-750.05,0.00024383,2]
[319497035,1710801521991,-700.3,0.00024383,2]
[319497036,1710801522016,-500.0,0.00024383,2]
[319497037,1710801522040,-500.0,0.00024383,2]
[319497038,1710801522065,-500.0,0.00024383,2]
[319497039,1710801522094,-232.83,0.00024383,2]
[319497040,1710801522119,-500.0,0.00024383,2]
[319497041,1710801522152,-771.5,0.00024383,2]
[319497042,1710801522181,-500.0,0.00024383,2]
[319497043,1710801522205,-816.17,0.00024383,2]
[319497044,1710801522229,-500.0,0.00024383,2]
[319497045,1710801522255,-761.47,0.00024383,2]
[319497046,1710801522279,-500.0,0.00024383,2]
[319497047,1710801522303,-500.0,0.00024383,2]
[319497048,1710801522326,-556.75,0.00024383,2]
[319497049,1710801522349,-1208.26,0.00024383,2]
[319497050,1710801522374,-500.0,0.00024383,2]
[319497051,1710801522401,-3033.01,0.00024383,2]
[319497052,1710801522425,-500.0,0.00024383,2]
[319497053,1710801522449,-500.0,0.00024383,2]
[319497054,1710801522473,-1975.39,0.00024383,2]
[319497055,1710801522497,-741.46,0.00024383,2]
[319497056,1710801522519,-1339.38,0.00024383,2]
[319497057,1710801522545,-2523.93,0.00024383,2]
[319497058,1710801522568,-641.13,0.00024383,2]
[319497059,1710801522592,-1219.93,0.00024383,2]
[319497060,1710801522614,-1679.61,0.00024383,2]
[319497061,1710801522639,-826.95,0.00024383,2]
[319497062,1710801522666,-500.0,0.00024383,2]
[319497063,1710801522689,-3302.65,0.00024383,2]
[319497064,1710801522711,-500.0,0.00024383,2]
[319497065,1710801522735,-500.0,0.00024383,2]
[319497066,1710801522758,-794.16,0.00024383,2]
[319497067,1710801522782,-1882.96,0.00024383,2]
[319497068,1710801522805,-3607.26,0.00024383,2]
[319497069,1710801522829,-2869.72,0.00024383,2]
[319497070,1710801522852,-769.85,0.00024383,2]
[319497071,1710801522876,-500.0,0.00024383,2]
[319497072,1710801522899,-500.0,0.00024383,2]
[319497073,1710801522922,-983.25,0.00024383,2]
[319497074,1710801522946,-369.04,0.00024383,2]
[319497075,1710801522969,-1188.81,0.00024383,2]
[319497076,1710801522994,-1417.26,0.00024383,2]
[319497077,1710801523017,-500.0,0.00024383,2]
[319497078,1710801523041,-2122.22,0.00024383,2]
[319497079,1710801523064,-500.0,0.00024383,2]
[319497080,1710801523092,-1018.71,0.00024383,2]
[319497081,1710801523117,-500.0,0.00024383,2]
[319497082,1710801523141,-781.25,0.00024383,2]
[319497083,1710801523167,-569.49,0.00024383,2]
[319497084,1710801523191,-1183.77,0.00024383,2]
[319497085,1710801523213,-500.0,0.00024383,2]
[319497086,1710801523236,-807.78,0.00024383,2]
[319497087,1710801523259,-500.0,0.00024383,2]
[319497088,1710801523283,-500.0,0.00024383,2]
[319497089,1710801523310,-500.0,0.00024383,2]
[319497090,1710801523333,-500.0,0.00024383,2]
[319497091,1710801523356,-500.0,0.00024383,2]
[319497092,1710801523379,-1780.72,0.00024383,2]
[319497093,1710801523404,-1006.2,0.00024383,2]
[319497094,1710801523429,-500.0,0.00024383,2]
[319497095,1710801523456,-500.0,0.00024383,2]
[319497096,1710801523481,-558.03,0.00024383,2]
[319497097,1710801523504,-1390.6,0.00024383,2]
[319497098,1710801523526,-1452.64,0.00024383,2]
[319497099,1710801523549,-500.0,0.00024383,2]
[319497100,1710801523573,-500.0,0.00024383,2]
[319497101,1710801523596,-500.0,0.00024383,2]
[319497102,1710801523618,-2348.83,0.00024383,2]
[319497103,1710801523644,-500.0,0.00024383,2]
[319497104,1710801523667,-883.91,0.00024383,2]
[319497105,1710801523691,-500.0,0.00024383,2]
[319497106,1710801523714,-500.0,0.00024383,2]
[319497107,1710801523736,-945.54,0.00024383,2]
[319497108,1710801523759,-826.45,0.00024383,2]
[319497109,1710801523782,-151.05666748,0.00024399,2]
[319497110,1710801523806,-546.1181314,0.000244,2]
[319497111,1710801523828,-153.94018795,0.00024442,2]
[319497112,1710801523852,-1338.88,0.00024488,2]
[319497113,1710801523877,-500.0,0.00024656,2]
[319497114,1710801523902,-500.0,0.00024656,2]
[319497115,1710801523927,-565.93,0.00024656,2]
[319497116,1710801523951,-574.97,0.00024656,2]
[319497117,1710801523974,-500.0,0.00024656,2]
[319497118,1710801524000,-2945.07,0.00024656,2]
[319497119,1710801524024,-500.0,0.00024656,2]
[319497120,1710801524047,-500.0,0.00024656,2]
[319497121,1710801524072,-839.75,0.00024656,2]
[319497122,1710801524099,-788.14,0.00024656,2]
[319497123,1710801524122,-815.54,0.00024656,2]
[319497124,1710801524146,-3447.08,0.00024656,2]
[319497125,1710801524169,-1456.55,0.00024656,2]
[319497126,1710801524192,-7984.72,0.00024656,2]
[319497127,1710801524216,-523.4,0.00024657,2]
[319497128,1710801524238,-572.66,0.00024657,2]
[319497129,1710801524262,-1533.64,0.00024657,2]
[319497130,1710801524288,-500.0,0.00024657,2]
[319497131,1710801524312,-989.36,0.00024657,2]
[319497132,1710801524334,-1069.34,0.00024657,2]
[319497133,1710801524357,-500.0,0.00024657,2]
[319497134,1710801524380,-686.39,0.00024657,2]
[319497135,1710801524548,-1396.55,0.00024657,2]
[319497136,1710801524572,-500.0,0.00024657,2]
[319497137,1710801524594,-610.81,0.00024657,2]
[319497138,1710801524616,-500.0,0.00024657,2]
[319497139,1710801524639,-807.02,0.00024657,2]
[319497140,1710801524666,-1025.84,0.00024657,2]
[319497141,1710801524689,-717.19,0.00024657,2]
[319497142,1710801524712,-1632.41,0.00024657,2]
[319497143,1710801524737,-763.85,0.00024657,2]
[319497144,1710801524760,-1011.43,0.00024657,2]
[319497145,1710801524784,-1273.81,0.00024657,2]
[319497146,1710801524807,-511.51,0.00024657,2]
[319497147,1710801524830,-500.0,0.00024657,2]
[319497148,1710801524855,-776.97,0.00024657,2]
[319497149,1710801524880,-500.0,0.00024657,2]
[319497150,1710801524910,-373.14313325,0.00024657,2]
[319497151,1710801524935,-1785.78,0.00024657,2]
[319497152,1710801524960,-500.0,0.00024657,2]
[319497153,1710801524986,-630.8,0.00024657,2]
[319497154,1710801525013,-750.05,0.00024657,2]
[319497155,1710801525036,-700.3,0.00024657,2]
[319497156,1710801525061,-500.0,0.00024657,2]
[319497157,1710801525089,-500.0,0.00024657,2]
[319497158,1710801525113,-500.0,0.00024657,2]
[319497159,1710801525136,-500.0,0.00024657,2]
[319497160,1710801525165,-771.5,0.00024657,2]
[319497161,1710801525190,-500.0,0.00024657,2]
[319497162,1710801525213,-816.17,0.00024657,2]
[319497163,1710801525236,-500.0,0.00024657,2]
[319497164,1710801525259,-761.47,0.00024657,2]
[319497165,1710801525282,-500.0,0.00024657,2]
[319497166,1710801525305,-500.0,0.00024657,2]
[319497167,1710801525328,-556.75,0.00024657,2]
[319497168,1710801525350,-1208.26,0.00024657,2]
[319497169,1710801525373,-500.0,0.00024657,2]
[319497170,1710801525399,-3033.01,0.00024657,2]
[319497171,1710801525422,-500.0,0.00024657,2]
[319497172,1710801525445,-500.0,0.00024657,2]
[319497173,1710801525469,-1975.39,0.00024657,2]
[319497174,1710801525491,-741.46,0.00024657,2]
[319497175,1710801525515,-1339.38,0.00024657,2]
[319497176,1710801525540,-2523.93,0.00024657,2]
[319497177,1710801525563,-641.13,0.00024657,2]
[319497178,1710801525585,-1219.93,0.00024657,2]
[319497179,1710801525608,-1679.61,0.00024657,2]
[319497180,1710801525631,-826.95,0.00024657,2]
[319497181,1710801525658,-500.0,0.00024657,2]
[319497182,1710801525681,-3302.65,0.00024657,2]
[319497183,1710801525704,-500.0,0.00024657,2]
[319497184,1710801525728,-500.0,0.00024657,2]
[319497185,1710801525758,-794.16,0.00024657,2]
[319497186,1710801525781,-1882.96,0.00024657,2]
[319497187,1710801525810,-3607.26,0.00024657,2]
[319497188,1710801525833,-2869.72,0.00024657,2]
[319497189,1710801525856,-769.85,0.00024657,2]